[Event "Betsys MČR v online bleskovém šachu 2021"]
[Site "Chess.com"]
[Date "2021.04.17"]
[Round "11"]
[White "svTomas"]
[Black "dnovotny"]
[Result "0-1"]
[WhiteElo "1432"]
[BlackElo "1716"]
[TimeControl "180+1"]
[EndTime "10:47:21 PDT"]
[Termination "Uživatel dnovotny zvítězil po vzdání soupeře"]

1. e4 {[%clk 0:03:00.9]} 1... c5 {[%clk 0:02:57.7]} 2. Nf3 {[%clk 0:02:59.5]}
2... d6 {[%clk 0:02:57.9]} 3. Bc4 {[%clk 0:02:57.6]} 3... Nf6 {[%clk 0:02:49.2]}
4. d3 {[%clk 0:02:54.5]} 4... Bg4 {[%clk 0:02:40.8]} 5. Bg5 {[%clk 0:02:50.6]}
5... e6 {[%clk 0:02:37]} 6. c3 {[%clk 0:02:42.6]} 6... h6 {[%clk 0:02:34.3]} 7.
Bh4 {[%clk 0:02:38.6]} 7... g5 {[%clk 0:02:29.4]} 8. Bg3 {[%clk 0:02:35.6]} 8...
h5 {[%clk 0:02:07.9]} 9. h3 {[%clk 0:02:34.6]} 9... Bxf3 {[%clk 0:02:00.5]} 10.
Qxf3 {[%clk 0:02:32.7]} 10... g4 {[%clk 0:02:00.7]} 11. hxg4 {[%clk 0:02:16.3]}
11... hxg4 {[%clk 0:01:59.7]} 12. Rxh8 {[%clk 0:01:39.2]} 12... gxf3 {[%clk
0:01:58.4]} 13. gxf3 {[%clk 0:01:39.3]} 13... Nc6 {[%clk 0:01:46.5]} 14. Bh4
{[%clk 0:01:38.4]} 14... Ne5 {[%clk 0:01:41.5]} 15. Bb5+ {[%clk 0:01:28.3]}
15... Ned7 {[%clk 0:01:34.2]} 16. Nd2 {[%clk 0:01:27.6]} 16... a6 {[%clk
0:01:33.7]} 17. Ba4 {[%clk 0:01:27.2]} 17... b5 {[%clk 0:01:33]} 18. Bb3 {[%clk
0:01:26.2]} 18... Ne5 {[%clk 0:01:33.1]} 19. Ke2 {[%clk 0:01:21.6]} 19... Ng6
{[%clk 0:01:30.9]} 20. Rg8 {[%clk 0:01:10.8]} 20... Nxh4 {[%clk 0:01:24.7]} 21.
Rh1 {[%clk 0:01:04.6]} 21... Nxg8 {[%clk 0:01:23.4]} 0-1

[Event "Betsys MČR v online bleskovém šachu 2021"]
[Site "Chess.com"]
[Date "2021.04.17"]
[Round "11"]
[White "starypomalymuz"]
[Black "CZMaster666"]
[Result "0-1"]
[WhiteElo "1757"]
[BlackElo "1919"]
[TimeControl "180+1"]
[EndTime "10:47:24 PDT"]
[Termination "Uživatel CZMaster666 zvítězil matem"]

1. e4 {[%clk 0:03:00.9]} 1... e5 {[%clk 0:02:59.6]} 2. d4 {[%clk 0:02:59.5]}
2... exd4 {[%clk 0:02:58.9]} 3. c3 {[%clk 0:03:00]} 3... Nf6 {[%clk 0:02:56.4]}
4. e5 {[%clk 0:02:57.5]} 4... Nd5 {[%clk 0:02:56.1]} 5. cxd4 {[%clk 0:02:51]}
5... Nc6 {[%clk 0:02:55.5]} 6. Nf3 {[%clk 0:02:49.9]} 6... d6 {[%clk 0:02:54.7]}
7. Bb5 {[%clk 0:02:47.3]} 7... dxe5 {[%clk 0:02:52.8]} 8. Bxc6+ {[%clk
0:02:46.6]} 8... bxc6 {[%clk 0:02:52.1]} 9. dxe5 {[%clk 0:02:42.7]} 9... Ba6
{[%clk 0:02:51.2]} 10. Bg5 {[%clk 0:02:21.8]} 10... Be7 {[%clk 0:02:48.2]} 11.
Bxe7 {[%clk 0:02:21.2]} 11... Qxe7 {[%clk 0:02:49.1]} 12. Nbd2 {[%clk
0:02:18.1]} 12... Rd8 {[%clk 0:02:37.1]} 13. Qc2 {[%clk 0:02:17.6]} 13... Nb4
{[%clk 0:02:37]} 14. Qc3 {[%clk 0:02:02.5]} 14... Nd3+ {[%clk 0:02:18.3]} 15.
Kd1 {[%clk 0:01:53.4]} 15... Nxf2+ {[%clk 0:02:16.7]} 16. Kc2 {[%clk 0:01:53.5]}
16... Bd3+ {[%clk 0:02:14.6]} 17. Kc1 {[%clk 0:01:44.2]} 17... Nxh1 {[%clk
0:02:11.9]} 18. Qxc6+ {[%clk 0:01:34.9]} 18... Qd7 {[%clk 0:02:12.1]} 19. Qxd7+
{[%clk 0:01:31]} 19... Rxd7 {[%clk 0:02:13]} 20. Nb3 {[%clk 0:01:12.1]} 20...
Bg6 {[%clk 0:01:51.8]} 21. Nbd4 {[%clk 0:01:07.6]} 21... c5 {[%clk 0:01:51.1]}
22. Nb5 {[%clk 0:01:04.4]} 22... Nf2 {[%clk 0:01:45.3]} 23. Nd6+ {[%clk
0:01:03.4]} 23... Ke7 {[%clk 0:01:45.5]} 24. a4 {[%clk 0:00:57.4]} 24... f6
{[%clk 0:01:39.3]} 25. Nc4 {[%clk 0:00:44.5]} 25... Rd1# {[%clk 0:01:38.1]} 0-1

[Event "Betsys MČR v online bleskovém šachu 2021"]
[Site "Chess.com"]
[Date "2021.04.17"]
[Round "11"]
[White "svobodan"]
[Black "RunningPawnz88"]
[Result "1-0"]
[WhiteElo "1643"]
[BlackElo "1348"]
[TimeControl "180+1"]
[EndTime "10:47:26 PDT"]
[Termination "Uživatel svobodan zvítězil matem"]

1. e4 {[%clk 0:03:00.9]} 1... c5 {[%clk 0:02:58.1]} 2. Nf3 {[%clk 0:03:01.2]}
2... Nc6 {[%clk 0:02:58.2]} 3. d4 {[%clk 0:03:01.7]} 3... e6 {[%clk 0:02:56.8]}
4. Nc3 {[%clk 0:03:00.6]} 4... Nf6 {[%clk 0:02:52.5]} 5. Be2 {[%clk 0:02:58]}
5... d5 {[%clk 0:02:47.6]} 6. exd5 {[%clk 0:02:54.2]} 6... exd5 {[%clk
0:02:47.6]} 7. O-O {[%clk 0:02:53.9]} 7... Bg4 {[%clk 0:02:42.7]} 8. Be3 {[%clk
0:02:52.1]} 8... cxd4 {[%clk 0:02:40.1]} 9. Nxd4 {[%clk 0:02:51.5]} 9... Bxe2
{[%clk 0:02:38.2]} 10. Qxe2 {[%clk 0:02:51.5]} 10... Nxd4 {[%clk 0:02:27.7]} 11.
Bxd4+ {[%clk 0:02:50.5]} 11... Be7 {[%clk 0:02:28.2]} 12. Rad1 {[%clk
0:02:42.5]} 12... Qd6 {[%clk 0:02:24.5]} 13. Rfe1 {[%clk 0:02:39]} 13... h5
{[%clk 0:01:53.6]} 14. Bxf6 {[%clk 0:02:35.6]} 14... gxf6 {[%clk 0:01:53.7]} 15.
Nxd5 {[%clk 0:02:28.5]} 15... Qe5 {[%clk 0:01:35.2]} 16. Nxe7 {[%clk 0:02:20.9]}
16... Kxe7 {[%clk 0:01:31.1]} 17. Qf3 {[%clk 0:02:19.1]} 17... Rad8 {[%clk
0:01:20.8]} 18. Rxe5+ {[%clk 0:02:18.1]} 18... fxe5 {[%clk 0:01:20.4]} 19. Qxb7+
{[%clk 0:02:16.2]} 19... Kf6 {[%clk 0:01:17.8]} 20. Qf3+ {[%clk 0:02:15.1]}
20... Kg7 {[%clk 0:01:16.7]} 21. Rxd8 {[%clk 0:02:13.3]} 21... Rxd8 {[%clk
0:01:15.9]} 22. Qxh5 {[%clk 0:02:13.6]} 22... f6 {[%clk 0:01:07.8]} 23. h3
{[%clk 0:02:11]} 23... Rd2 {[%clk 0:00:53.9]} 24. Qg4+ {[%clk 0:02:08.7]} 24...
Kf7 {[%clk 0:00:52.2]} 25. Qh5+ {[%clk 0:02:07.4]} 25... Ke6 {[%clk 0:00:52]}
26. Qe8+ {[%clk 0:02:06.2]} 26... Kf5 {[%clk 0:00:51.8]} 27. g4+ {[%clk
0:02:02.2]} 27... Kf4 {[%clk 0:00:51.1]} 28. Qa4+ {[%clk 0:02:01.3]} 28... e4
{[%clk 0:00:45.3]} 29. Qxa7 {[%clk 0:01:54.8]} 29... Kf3 {[%clk 0:00:39.9]} 30.
Qe3# {[%clk 0:01:53.7]} 1-0

[Event "Betsys MČR v online bleskovém šachu 2021"]
[Site "Chess.com"]
[Date "2021.04.17"]
[Round "11"]
[White "SanyH"]
[Black "Tomasn2003"]
[Result "1-0"]
[WhiteElo "1600"]
[BlackElo "1151"]
[TimeControl "180+1"]
[EndTime "10:47:29 PDT"]
[Termination "Uživatel SanyH zvítězil po vzdání soupeře"]

1. e4 {[%clk 0:03:00.9]} 1... c5 {[%clk 0:02:59.7]} 2. Nf3 {[%clk 0:03:00]} 2...
d6 {[%clk 0:02:59.7]} 3. d4 {[%clk 0:02:59.8]} 3... cxd4 {[%clk 0:02:58.9]} 4.
Nxd4 {[%clk 0:03:00.2]} 4... Nf6 {[%clk 0:02:59]} 5. Nc3 {[%clk 0:02:58.6]} 5...
g6 {[%clk 0:02:57.9]} 6. Be3 {[%clk 0:02:57.7]} 6... Bg7 {[%clk 0:02:56.4]} 7.
Bc4 {[%clk 0:02:56.3]} 7... O-O {[%clk 0:02:53.2]} 8. O-O {[%clk 0:02:55.3]}
8... Nc6 {[%clk 0:02:53.1]} 9. f3 {[%clk 0:02:54.3]} 9... Bd7 {[%clk 0:02:48.6]}
10. Qd2 {[%clk 0:02:52.5]} 10... Nxd4 {[%clk 0:02:47.5]} 11. Bxd4 {[%clk
0:02:51.4]} 11... b6 {[%clk 0:02:43.8]} 12. Rad1 {[%clk 0:02:41]} 12... e5
{[%clk 0:02:29.6]} 13. Be3 {[%clk 0:02:39.1]} 13... Rc8 {[%clk 0:02:23.3]} 14.
Bb3 {[%clk 0:02:37.9]} 14... d5 {[%clk 0:01:54.7]} 15. exd5 {[%clk 0:02:32.6]}
15... Be8 {[%clk 0:01:29.5]} 16. Bh6 {[%clk 0:02:28.3]} 16... Bxh6 {[%clk
0:01:26.3]} 17. Qxh6 {[%clk 0:02:27.8]} 17... Rxc3 {[%clk 0:01:18.1]} 18. bxc3
{[%clk 0:02:26.4]} 18... a5 {[%clk 0:01:11.6]} 19. f4 {[%clk 0:02:24.2]} 19...
exf4 {[%clk 0:01:10.7]} 20. Rxf4 {[%clk 0:02:23.3]} 20... a4 {[%clk 0:01:06.6]}
21. Bc4 {[%clk 0:02:20.8]} 21... b5 {[%clk 0:01:06.5]} 22. Bd3 {[%clk
0:02:15.1]} 22... Nxd5 {[%clk 0:01:04.1]} 23. Rh4 {[%clk 0:02:14.4]} 23... Nf6
{[%clk 0:00:57.8]} 24. Rf1 {[%clk 0:02:13.9]} 24... Qb6+ {[%clk 0:00:56]} 25.
Kh1 {[%clk 0:02:12.8]} 25... Bc6 {[%clk 0:00:31.1]} 26. Rxf6 {[%clk 0:02:09.5]}
26... Bxg2+ {[%clk 0:00:30.9]} 27. Kxg2 {[%clk 0:02:05.8]} 27... Qb7+ {[%clk
0:00:29.4]} 28. Be4 {[%clk 0:02:01]} 1-0

[Event "Betsys MČR v online bleskovém šachu 2021"]
[Site "Chess.com"]
[Date "2021.04.17"]
[Round "11"]
[White "Classemence"]
[Black "JanBaraCZE"]
[Result "1-0"]
[WhiteElo "1881"]
[BlackElo "1588"]
[TimeControl "180+1"]
[EndTime "10:47:30 PDT"]
[Termination "Uživatel Classemence zvítězil po vzdání soupeře"]

1. e4 {[%clk 0:03:00.9]} 1... c5 {[%clk 0:03:00.9]} 2. Nf3 {[%clk 0:03:00.7]}
2... Nc6 {[%clk 0:03:01.8]} 3. Nc3 {[%clk 0:03:00.9]} 3... d6 {[%clk 0:03:01.4]}
4. Bb5 {[%clk 0:03:01.2]} 4... Bd7 {[%clk 0:03:00.9]} 5. Bxc6 {[%clk 0:03:01.8]}
5... Bxc6 {[%clk 0:03:00.6]} 6. d3 {[%clk 0:03:02.7]} 6... Nf6 {[%clk
0:03:00.4]} 7. O-O {[%clk 0:03:03.6]} 7... g6 {[%clk 0:03:00.6]} 8. Bg5 {[%clk
0:03:04]} 8... Bg7 {[%clk 0:03:00.8]} 9. Qd2 {[%clk 0:03:04.7]} 9... O-O {[%clk
0:03:01.2]} 10. Bh6 {[%clk 0:03:05.3]} 10... a6 {[%clk 0:02:59.3]} 11. Bxg7
{[%clk 0:03:05.6]} 11... Kxg7 {[%clk 0:03:00.1]} 12. h3 {[%clk 0:03:06]} 12...
b5 {[%clk 0:02:59.8]} 13. Nh2 {[%clk 0:03:06.7]} 13... b4 {[%clk 0:02:58.9]} 14.
Ne2 {[%clk 0:03:06.8]} 14... d5 {[%clk 0:02:55.5]} 15. e5 {[%clk 0:03:00.1]}
15... Nd7 {[%clk 0:02:54.5]} 16. f4 {[%clk 0:03:00.5]} 16... Qb6 {[%clk
0:02:52.6]} 17. Kh1 {[%clk 0:02:59.3]} 17... Rad8 {[%clk 0:02:49.1]} 18. f5
{[%clk 0:02:56.4]} 18... Nxe5 {[%clk 0:02:47.6]} 19. d4 {[%clk 0:02:49.8]} 19...
cxd4 {[%clk 0:02:47]} 20. Nxd4 {[%clk 0:02:50.7]} 20... Bb7 {[%clk 0:02:44.4]}
21. c3 {[%clk 0:02:49.4]} 21... bxc3 {[%clk 0:02:43.1]} 22. bxc3 {[%clk
0:02:50.3]} 22... a5 {[%clk 0:02:31.3]} 23. Rae1 {[%clk 0:02:43.8]} 23... Ba6
{[%clk 0:02:25.5]} 24. Rg1 {[%clk 0:02:10.6]} 24... Nd3 {[%clk 0:02:22.1]} 25.
Rxe7 {[%clk 0:02:03]} 25... Qb2 {[%clk 0:02:07.1]} 26. Nc2 {[%clk 0:01:38.6]}
26... Qxc3 {[%clk 0:01:49.5]} 27. Qxc3+ {[%clk 0:01:33.6]} 27... d4 {[%clk
0:01:46.1]} 28. Qd2 {[%clk 0:01:30.5]} 28... Kf6 {[%clk 0:01:42.4]} 29. Ra7
{[%clk 0:01:26.6]} 29... Rd6 {[%clk 0:01:36.5]} 30. Rxa6 {[%clk 0:01:25]} 30...
Rxa6 {[%clk 0:01:35.4]} 31. Qxd3 {[%clk 0:01:25.5]} 31... Rd6 {[%clk 0:01:34.2]}
32. Ng4+ {[%clk 0:01:25.5]} 32... Kg7 {[%clk 0:01:32.6]} 33. f6+ {[%clk
0:01:25.9]} 33... Kg8 {[%clk 0:01:31.8]} 34. Qd2 {[%clk 0:01:24.6]} 34... Rfd8
{[%clk 0:01:30.8]} 35. Qh6 {[%clk 0:01:24.3]} 35... Rxf6 {[%clk 0:01:28.4]} 36.
Nxf6+ {[%clk 0:01:25.2]} 1-0

[Event "Betsys MČR v online bleskovém šachu 2021"]
[Site "Chess.com"]
[Date "2021.04.17"]
[Round "11"]
[White "Krtecci"]
[Black "Bancroft"]
[Result "0-1"]
[WhiteElo "2063"]
[BlackElo "1938"]
[TimeControl "180+1"]
[EndTime "10:47:38 PDT"]
[Termination "Uživatel Bancroft zvítězil po vzdání soupeře"]

1. e4 {[%clk 0:02:42.4]} 1... c5 {[%clk 0:02:59.9]} 2. Nf3 {[%clk 0:02:41.6]}
2... d6 {[%clk 0:02:58.3]} 3. d4 {[%clk 0:02:42.2]} 3... cxd4 {[%clk 0:02:59.2]}
4. Nxd4 {[%clk 0:02:42.8]} 4... Nf6 {[%clk 0:02:59.9]} 5. Nc3 {[%clk 0:02:43.3]}
5... g6 {[%clk 0:03:00.5]} 6. Bg5 {[%clk 0:02:37.7]} 6... Bg7 {[%clk 0:03:00.7]}
7. f3 {[%clk 0:02:36.4]} 7... O-O {[%clk 0:03:00]} 8. Qd2 {[%clk 0:02:36.9]}
8... Nc6 {[%clk 0:02:59.9]} 9. O-O-O {[%clk 0:02:28.6]} 9... d5 {[%clk
0:02:38.1]} 10. Nb3 {[%clk 0:02:18.7]} 10... dxe4 {[%clk 0:02:14.3]} 11. Qf4
{[%clk 0:02:07.8]} 11... Qb6 {[%clk 0:02:03.9]} 12. fxe4 {[%clk 0:02:07.5]}
12... Ng4 {[%clk 0:01:31.6]} 13. Nd5 {[%clk 0:01:53.9]} 13... Qf2 {[%clk
0:01:23]} 14. Qc7 {[%clk 0:01:38.1]} 14... Be5 {[%clk 0:00:57.7]} 15. Be3 {[%clk
0:01:19.6]} 15... Nxe3 {[%clk 0:00:51.6]} 16. Nxe7+ {[%clk 0:01:19]} 16... Kg7
{[%clk 0:00:42.9]} 17. Rd2 {[%clk 0:01:14.7]} 17... Qxd2+ {[%clk 0:00:37.1]} 0-1

[Event "Betsys MČR v online bleskovém šachu 2021"]
[Site "Chess.com"]
[Date "2021.04.17"]
[Round "11"]
[White "Daffac"]
[Black "avsokol"]
[Result "0-1"]
[WhiteElo "2083"]
[BlackElo "2351"]
[TimeControl "180+1"]
[EndTime "10:47:52 PDT"]
[Termination "Uživatel avsokol zvítězil po vzdání soupeře"]

1. d4 {[%clk 0:03:00.9]} 1... Nf6 {[%clk 0:02:59.3]} 2. Nf3 {[%clk 0:03:00.4]}
2... g6 {[%clk 0:02:59.8]} 3. g3 {[%clk 0:02:59.3]} 3... Bg7 {[%clk 0:03:00.2]}
4. Bg2 {[%clk 0:03:00.2]} 4... O-O {[%clk 0:02:59.7]} 5. O-O {[%clk 0:03:01.1]}
5... d6 {[%clk 0:03:00.1]} 6. a4 {[%clk 0:03:01.3]} 6... Nbd7 {[%clk 0:02:59.3]}
7. Re1 {[%clk 0:03:01.6]} 7... a5 {[%clk 0:02:57.6]} 8. e4 {[%clk 0:03:01]} 8...
e5 {[%clk 0:02:57.5]} 9. Nc3 {[%clk 0:03:00.7]} 9... c6 {[%clk 0:02:56]} 10. h3
{[%clk 0:03:00]} 10... Qc7 {[%clk 0:02:55.6]} 11. Be3 {[%clk 0:02:59.6]} 11...
Re8 {[%clk 0:02:54.4]} 12. Qd2 {[%clk 0:02:56.5]} 12... b6 {[%clk 0:02:38.7]}
13. d5 {[%clk 0:02:46]} 13... cxd5 {[%clk 0:02:34.7]} 14. Nxd5 {[%clk
0:02:43.5]} 14... Nxd5 {[%clk 0:02:30.8]} 15. exd5 {[%clk 0:02:42.3]} 15... Nc5
{[%clk 0:02:27.9]} 16. Bh6 {[%clk 0:02:29.1]} 16... Bh8 {[%clk 0:02:23.7]} 17.
Ng5 {[%clk 0:02:22.3]} 17... Bd7 {[%clk 0:02:18.1]} 18. b3 {[%clk 0:02:07.2]}
18... Rac8 {[%clk 0:02:05.5]} 19. Ne4 {[%clk 0:02:01.1]} 19... Nxe4 {[%clk
0:02:02.5]} 20. Bxe4 {[%clk 0:02:02]} 20... Bxh3 {[%clk 0:01:57.1]} 21. Kh2
{[%clk 0:01:54.8]} 21... Bd7 {[%clk 0:01:56.3]} 22. Rh1 {[%clk 0:01:55]} 22...
f5 {[%clk 0:01:52.1]} 23. Bd3 {[%clk 0:01:53.6]} 23... e4 {[%clk 0:01:51.5]} 24.
Bc4 {[%clk 0:01:54]} 24... Bxa1 {[%clk 0:01:38.3]} 25. Rxa1 {[%clk 0:01:52.7]}
25... Qd8 {[%clk 0:01:38.8]} 26. Qd4 {[%clk 0:01:47.9]} 26... Re5 {[%clk
0:01:37.9]} 27. Bf4 {[%clk 0:01:43.2]} 27... Qe7 {[%clk 0:01:19]} 28. Qxb6
{[%clk 0:01:37.3]} 28... g5 {[%clk 0:01:16]} 29. Bxe5 {[%clk 0:01:35.3]} 29...
Qxe5 {[%clk 0:01:15.9]} 30. Qxa5 {[%clk 0:01:28.5]} 30... Qxa1 {[%clk
0:01:14.9]} 31. Qa7 {[%clk 0:01:27.4]} 31... Qg7 {[%clk 0:01:14.1]} 32. Ba6
{[%clk 0:01:24.9]} 32... Rxc2 {[%clk 0:01:08.8]} 33. Qb8+ {[%clk 0:01:23.1]}
33... Qf8 {[%clk 0:01:08.3]} 0-1

[Event "Betsys MČR v online bleskovém šachu 2021"]
[Site "Chess.com"]
[Date "2021.04.17"]
[Round "11"]
[White "masterofbuzkashi"]
[Black "Zelezny1984"]
[Result "1-0"]
[WhiteElo "2237"]
[BlackElo "2058"]
[TimeControl "180+1"]
[EndTime "10:47:52 PDT"]
[Termination "Uživatel masterofbuzkashi zvítězil po vzdání soupeře"]

1. d4 {[%clk 0:03:00.9]} 1... e6 {[%clk 0:02:59.9]} 2. c4 {[%clk 0:03:01.1]}
2... d5 {[%clk 0:03:00.4]} 3. Nc3 {[%clk 0:03:01.3]} 3... c5 {[%clk 0:03:01]} 4.
Nf3 {[%clk 0:03:01.1]} 4... cxd4 {[%clk 0:03:00.7]} 5. Nxd4 {[%clk 0:02:57.6]}
5... e5 {[%clk 0:03:01.2]} 6. Nc2 {[%clk 0:02:57.5]} 6... d4 {[%clk 0:03:01]} 7.
Ne4 {[%clk 0:02:56.4]} 7... f5 {[%clk 0:02:49.7]} 8. Ng3 {[%clk 0:02:56.4]} 8...
h5 {[%clk 0:02:40.5]} 9. h4 {[%clk 0:02:53.2]} 9... Be7 {[%clk 0:02:40.1]} 10.
e3 {[%clk 0:02:50.7]} 10... Bxh4 {[%clk 0:02:05.8]} 11. exd4 {[%clk 0:02:42.1]}
11... Bxg3 {[%clk 0:02:04.6]} 12. fxg3 {[%clk 0:02:41.4]} 12... g6 {[%clk
0:01:55.2]} 13. dxe5 {[%clk 0:02:37.9]} 13... Qxd1+ {[%clk 0:01:56.1]} 14. Kxd1
{[%clk 0:02:37.3]} 14... Nc6 {[%clk 0:01:54.3]} 15. Bf4 {[%clk 0:02:36.5]} 15...
Nh6 {[%clk 0:01:48.8]} 16. Ne3 {[%clk 0:02:23]} 16... Nf7 {[%clk 0:01:43.8]} 17.
Nd5 {[%clk 0:02:20.3]} 17... O-O {[%clk 0:01:32.8]} 18. Nc7 {[%clk 0:02:01.9]}
18... Rb8 {[%clk 0:01:29.9]} 19. e6 {[%clk 0:02:02.1]} 19... Nfe5 {[%clk
0:01:02.3]} 20. e7 {[%clk 0:01:48.1]} 20... Nxe7 {[%clk 0:00:37.2]} 21. Bxe5
{[%clk 0:01:46]} 21... Bd7 {[%clk 0:00:37.1]} 22. Nd5 {[%clk 0:01:35.3]} 22...
Rbe8 {[%clk 0:00:26.3]} 23. Nf6+ {[%clk 0:01:31.4]} 23... Rxf6 {[%clk
0:00:24.8]} 24. Bxf6 {[%clk 0:01:31.6]} 24... Nc6 {[%clk 0:00:23.3]} 1-0

[Event "Betsys MČR v online bleskovém šachu 2021"]
[Site "Chess.com"]
[Date "2021.04.17"]
[Round "11"]
[White "lupinek23"]
[Black "ikovacs"]
[Result "1-0"]
[WhiteElo "1598"]
[BlackElo "1088"]
[TimeControl "180+1"]
[EndTime "10:47:52 PDT"]
[Termination "Uživatel lupinek23 zvítězil na čas"]

1. e4 {[%clk 0:03:00.9]} 1... e5 {[%clk 0:02:56.3]} 2. Nf3 {[%clk 0:03:00.1]}
2... d6 {[%clk 0:02:56.1]} 3. d4 {[%clk 0:02:59.6]} 3... Bg4 {[%clk 0:02:53.9]}
4. dxe5 {[%clk 0:02:58.4]} 4... Bxf3 {[%clk 0:02:53.7]} 5. Qxf3 {[%clk
0:02:56.7]} 5... dxe5 {[%clk 0:02:53.5]} 6. Bc4 {[%clk 0:02:56.8]} 6... Qe7
{[%clk 0:02:23.4]} 7. Nc3 {[%clk 0:02:54.2]} 7... c6 {[%clk 0:02:17.5]} 8. Bg5
{[%clk 0:02:40.6]} 8... Nf6 {[%clk 0:02:08.3]} 9. O-O-O {[%clk 0:02:38.3]} 9...
h6 {[%clk 0:02:06.4]} 10. Bh4 {[%clk 0:02:29.3]} 10... g5 {[%clk 0:02:04.4]} 11.
Bg3 {[%clk 0:02:28.4]} 11... Bg7 {[%clk 0:02:00.3]} 12. h4 {[%clk 0:02:03.7]}
12... O-O {[%clk 0:01:55.4]} 13. hxg5 {[%clk 0:02:02.8]} 13... hxg5 {[%clk
0:01:53]} 14. Rh2 {[%clk 0:01:56.7]} 14... g4 {[%clk 0:01:45]} 15. Qf5 {[%clk
0:01:54.5]} 15... Nbd7 {[%clk 0:01:27.7]} 16. Rdh1 {[%clk 0:01:51.2]} 16... b5
{[%clk 0:00:57.3]} 17. Bb3 {[%clk 0:01:48.9]} 17... Nc5 {[%clk 0:00:12.4]} 18.
Bxe5 {[%clk 0:01:37.2]} 1-0

[Event "Betsys MČR v online bleskovém šachu 2021"]
[Site "Chess.com"]
[Date "2021.04.17"]
[Round "11"]
[White "Bagr92"]
[Black "KatkaZ"]
[Result "0-1"]
[WhiteElo "1595"]
[BlackElo "1848"]
[TimeControl "180+1"]
[EndTime "10:47:55 PDT"]
[Termination "Uživatel KatkaZ zvítězil po vzdání soupeře"]

1. e4 {[%clk 0:02:59.7]} 1... c5 {[%clk 0:02:59.4]} 2. Nf3 {[%clk 0:02:58.9]}
2... e6 {[%clk 0:02:59.9]} 3. d4 {[%clk 0:02:59.8]} 3... cxd4 {[%clk 0:02:59.7]}
4. Nxd4 {[%clk 0:03:00.7]} 4... a6 {[%clk 0:03:00.1]} 5. c4 {[%clk 0:02:59.9]}
5... Qc7 {[%clk 0:02:59.8]} 6. Nc3 {[%clk 0:02:59.3]} 6... Nf6 {[%clk
0:02:59.6]} 7. Bd3 {[%clk 0:02:55.1]} 7... g6 {[%clk 0:02:58.1]} 8. O-O {[%clk
0:02:54.1]} 8... Bg7 {[%clk 0:02:58.1]} 9. f4 {[%clk 0:02:51.8]} 9... d6 {[%clk
0:02:57.1]} 10. Be3 {[%clk 0:02:51.9]} 10... Nbd7 {[%clk 0:02:56.2]} 11. b4
{[%clk 0:02:36.8]} 11... O-O {[%clk 0:02:54.8]} 12. Qf3 {[%clk 0:02:34.1]} 12...
Rb8 {[%clk 0:02:45.3]} 13. a4 {[%clk 0:02:32.5]} 13... b6 {[%clk 0:02:44.4]} 14.
Rac1 {[%clk 0:02:21.8]} 14... Bb7 {[%clk 0:02:43.7]} 15. Rc2 {[%clk 0:02:05.2]}
15... Qd8 {[%clk 0:02:36.9]} 16. Ra1 {[%clk 0:02:04.3]} 16... Qe7 {[%clk
0:02:34.7]} 17. a5 {[%clk 0:02:01.8]} 17... bxa5 {[%clk 0:02:30.5]} 18. Rxa5
{[%clk 0:01:59.2]} 18... d5 {[%clk 0:02:21.5]} 19. cxd5 {[%clk 0:01:46.5]} 19...
exd5 {[%clk 0:02:18.1]} 20. e5 {[%clk 0:01:43.8]} 20... Nxe5 {[%clk 0:02:06.5]}
21. fxe5 {[%clk 0:01:40.1]} 21... Qxe5 {[%clk 0:02:05.9]} 22. Re2 {[%clk
0:01:14]} 22... Qd6 {[%clk 0:01:44.7]} 23. b5 {[%clk 0:01:09.5]} 23... Qb4
{[%clk 0:01:36]} 24. Ra4 {[%clk 0:01:06.9]} 24... Qxc3 {[%clk 0:01:35.1]} 25.
bxa6 {[%clk 0:01:01.8]} 25... Qxd3 {[%clk 0:01:30.4]} 26. axb7 {[%clk
0:01:00.8]} 26... Rxb7 {[%clk 0:01:28.2]} 27. Qf2 {[%clk 0:00:55.1]} 27... Ne4
{[%clk 0:01:22.4]} 28. Qf3 {[%clk 0:00:46.3]} 28... Qd1+ {[%clk 0:01:21.6]} 29.
Qf1 {[%clk 0:00:43.6]} 29... Qxa4 {[%clk 0:01:21.3]} 0-1

[Event "Betsys MČR v online bleskovém šachu 2021"]
[Site "Chess.com"]
[Date "2021.04.17"]
[Round "11"]
[White "pa9p"]
[Black "Ondre2836"]
[Result "1-0"]
[WhiteElo "1764"]
[BlackElo "1236"]
[TimeControl "180+1"]
[EndTime "10:47:57 PDT"]
[Termination "Uživatel pa9p zvítězil matem"]

1. e4 {[%clk 0:02:54.8]} 1... d5 {[%clk 0:02:58.9]} 2. exd5 {[%clk 0:02:53.5]}
2... Qxd5 {[%clk 0:02:55]} 3. Nf3 {[%clk 0:02:53]} 3... Nf6 {[%clk 0:02:52.6]}
4. d4 {[%clk 0:02:50.6]} 4... Bg4 {[%clk 0:02:51.3]} 5. Be2 {[%clk 0:02:50.3]}
5... e6 {[%clk 0:02:45]} 6. O-O {[%clk 0:02:43.8]} 6... Nc6 {[%clk 0:02:34.7]}
7. c4 {[%clk 0:02:35.3]} 7... Qd6 {[%clk 0:02:28.2]} 8. Be3 {[%clk 0:02:34.3]}
8... O-O-O {[%clk 0:02:26.6]} 9. c5 {[%clk 0:02:27.5]} 9... Qd5 {[%clk
0:02:22.1]} 10. Nc3 {[%clk 0:02:26.8]} 10... Qd6 {[%clk 0:02:23]} 11. cxd6
{[%clk 0:02:25.7]} 11... Rxd6 {[%clk 0:02:09.1]} 12. h3 {[%clk 0:02:18.6]} 12...
Bh5 {[%clk 0:02:07.1]} 13. Qa4 {[%clk 0:02:13.9]} 13... Kb8 {[%clk 0:02:00.3]}
14. Ne5 {[%clk 0:02:07.1]} 14... Bxe2 {[%clk 0:01:52.8]} 15. Nxe2 {[%clk
0:01:54.4]} 15... Be7 {[%clk 0:01:45.7]} 16. Nxf7 {[%clk 0:01:53.8]} 16... Rf8
{[%clk 0:01:43.8]} 17. Nxd6 {[%clk 0:01:53.8]} 17... cxd6 {[%clk 0:01:43.8]} 18.
Nf4 {[%clk 0:01:50.9]} 18... Ne4 {[%clk 0:01:40.9]} 19. Nxe6 {[%clk 0:01:49.4]}
19... Rf6 {[%clk 0:01:39.5]} 20. Ng5 {[%clk 0:01:45.3]} 20... h6 {[%clk
0:01:38.6]} 21. Nxe4 {[%clk 0:01:45]} 21... Re6 {[%clk 0:01:38]} 22. Nc3 {[%clk
0:01:41.6]} 22... Kc8 {[%clk 0:01:32.7]} 23. d5 {[%clk 0:01:41.5]} 23... Re5
{[%clk 0:01:28.2]} 24. dxc6 {[%clk 0:01:41.3]} 24... bxc6 {[%clk 0:01:17.3]} 25.
Qxc6+ {[%clk 0:01:40.3]} 25... Kd8 {[%clk 0:01:17.7]} 26. Bxa7 {[%clk 0:01:35]}
26... Bg5 {[%clk 0:01:11.7]} 27. Qxd6+ {[%clk 0:01:33.8]} 27... Ke8 {[%clk
0:01:09.1]} 28. Qxe5+ {[%clk 0:01:33.4]} 28... Kf8 {[%clk 0:01:09.1]} 29. Bc5+
{[%clk 0:01:32.4]} 29... Kg8 {[%clk 0:01:06.6]} 30. Qe6+ {[%clk 0:01:30.1]}
30... Kh8 {[%clk 0:01:04.4]} 31. Ne4 {[%clk 0:01:29]} 31... Kh7 {[%clk
0:01:03.6]} 32. Nxg5+ {[%clk 0:01:28.1]} 32... hxg5 {[%clk 0:01:03]} 33. Qf7
{[%clk 0:01:28]} 33... Kh6 {[%clk 0:01:02.4]} 34. Bd4 {[%clk 0:01:27.2]} 34...
g4 {[%clk 0:01:01.1]} 35. Qxg7+ {[%clk 0:01:25.5]} 35... Kh5 {[%clk 0:01:00.7]}
36. hxg4+ {[%clk 0:01:23.9]} 36... Kh4 {[%clk 0:01:00.5]} 37. Bf6# {[%clk
0:01:23.6]} 1-0